bitfinex-derivatives/quotes_ETHF0:USTF0_20250404
["timestamp","ask_amount","ask_price","bid_price","bid_amount"]
[1743772913264,1.12821434,1786.3,1786.2,46.52739]
[1743772913666,0.00838434,1786.3,1786.2,46.52739]
[1743772914563,1.12821434,1786.3,1786.2,43.31959]
[1743772914966,0.00838434,1786.3,1786.2,46.52739]
[1743772915368,1.12821434,1786.3,1786.2,46.52739]
[1743772915565,0.00838434,1786.3,1786.2,46.52739]
[1743772916467,2.1814,1786.8,1786.2,52.5045]
[1743772916667,1.5134,1787.0,1786.9,1.11945]
[1743772916862,1.11945,1786.9,1786.8,1.4205]
[1743772917069,2.63282,1787.0,1786.9,1.11945]
[1743772917856,1.11942,1787.0,1786.9,1.11945]
[1743772918272,1.12775434,1787.1,1787.0,1.11939]
[1743772918569,0.00838434,1787.1,1787.0,2.53989]
[1743772919663,2.79786,1787.4,1787.0,2.53983]
[1743772919865,1.11933,1787.1,1787.0,1.4205]
[1743772920058,1.11933,1787.1,1787.0,42.2205]
[1743772920261,1.11933,1787.1,1787.0,40.8]
[1743772920567,3.61933,1787.1,1787.0,40.8]
[1743772920773,1.11945,1786.9,1786.8,4.596]
[1743772921066,1.11952,1786.8,1786.7,3.21618434]
[1743772921363,1.4623,1786.8,1786.7,4.33576434]
[1743772921569,2.0486,1787.0,1786.7,4.70018434]
[1743772921773,3.5304,1787.0,1786.8,1.5205]
[1743772921971,1.11945,1786.9,1786.8,2.63998]
[1743772922470,1.11945,1786.9,1786.8,1.5205]
[1743772922776,1.11952,1786.8,1786.7,3.21618434]
[1743772923072,1.4818,1786.9,1786.7,3.21618434]
[1743772923269,2.0486,1787.0,1786.7,1.52888434]
[1743772923571,1.11952,1786.8,1786.7,0.00838434]
[1743772923762,2.60126,1786.9,1786.7,0.00838434]
[1743772923957,1.4818,1786.8,1786.7,1.12796434]
[1743772924170,2.60132,1786.8,1786.7,1.52888434]
[1743772924568,2.78196299,1786.8,1786.7,1.52888434]
[1743772924770,1.66244299,1786.8,1786.7,2.64846434]
[1743772925275,0.18064299,1786.8,1786.7,5.85626434]
[1743772925867,1.30016299,1786.8,1786.7,5.85626434]
[1743772926063,0.18064299,1786.8,1786.7,2.64846434]
[1743772926268,1.30016299,1786.8,1786.7,1.52888434]
[1743772927175,1.30016299,1786.8,1786.7,2.64846434]
[1743772927363,0.18064299,1786.8,1786.7,2.64846434]
[1743772927974,0.00838434,1787.2,1786.7,12.94826434]
[1743772928275,0.00838434,1787.2,1787.0,1.11935]
[1743772928479,1.11933,1787.1,1787.0,1.11935]
[1743772928976,1.11942,1787.0,1786.9,1.1194]
[1743772929268,1.11945,1786.9,1786.8,2.15147]
[1743772929474,1.11945,1787.0,1786.9,1.11941]
[1743772929776,1.11938,1787.1,1787.0,1.11934]
[1743772929978,1.11949,1786.9,1786.8,1.11945]
[1743772930178,1.11952,1786.8,1786.7,5.71996434]
[1743772930474,1.11952,1786.8,1786.7,1.12796434]
[1743772930669,2.5347,1786.9,1786.7,0.00838434]
[1743772930868,1.11952,1786.8,1786.7,0.00838434]
[1743772931076,1.11952,1786.8,1786.7,1.12796434]
[1743772931277,1.11952,1786.8,1786.7,0.00838434]
[1743772931775,2.65192,1786.8,1786.7,0.00838434]
[1743772933070,5.22808667,1786.8,1786.7,0.00838434]
[1743772933571,1.12002,1786.0,1785.9,1.12006]
[1743772933978,1.19621667,1786.0,1785.9,1.12007]
[1743772934172,1.12008,1785.9,1785.8,1.1201]
[1743772934478,1.12008,1785.9,1785.8,41.9201]
[1743772934774,0.08455101,1786.0,1785.8,40.8]
[1743772934973,1.19624667,1785.9,1785.8,40.8]
[1743772935180,2.63214667,1785.9,1785.8,40.8]
[1743772936275,1.19624667,1785.9,1785.8,40.8]
[1743772936575,0.07616667,1785.9,1785.8,41.92014]
[1743772936769,1.19624667,1785.9,1785.8,40.8]
[1743772936981,6.93214667,1785.9,1785.8,40.8]
[1743772937268,1.12052,1785.2,1784.9,3.2078]
[1743772937472,7.39084,1785.5,1784.9,3.2078]
[1743772937679,1.1205,1785.3,1785.1,1.12058]
[1743772937872,1.12052,1785.2,1785.0,41.9206]
[1743772938075,1.19671667,1785.2,1785.0,42.36475042]
[1743772938276,1.19668667,1785.2,1785.0,42.36474042]
[1743772938479,0.07616667,1785.2,1785.0,40.8]
[1743772939180,0.07616667,1785.2,1784.9,0.00838434]
[1743772939181,1.12064,1785.0,1784.9,0.00838434]
[1743772939571,5.10124,1785.0,1784.9,0.00838434]
[1743772940281,5.17740667,1785.0,1784.9,0.00838434]
[1743772941380,1.12083,1784.7,1784.6,40.8]
[1743772941574,1.27316334,1784.7,1784.6,40.8]
[1743772941975,1.12096,1784.5,1784.4,8.71602805]
[1743772942281,1.61013334,1784.7,1784.3,1.4747]
[1743772942476,1.61013334,1784.7,1784.6,1.1209]
[1743772942668,1.28158768,1784.7,1784.4,41.92099]
[1743772942872,1.28158768,1784.7,1784.5,1.4747]
[1743772942873,1.1209,1784.6,1784.5,1.4747]
[1743772943580,1.27323334,1784.6,1784.5,1.4747]
[1743772944477,0.15233334,1784.6,1784.5,1.4747]
[1743772944677,1.27323334,1784.6,1784.5,1.4747]
[1743772944877,2.73193334,1784.6,1784.5,1.4747]
[1743772945382,0.15233334,1784.6,1784.5,2.59566]
[1743772945584,0.15233334,1784.6,1784.5,5.80346]
[1743772945876,0.15233334,1784.6,1784.5,4.6825]
[1743772946182,0.15233334,1784.6,1784.5,5.80346]
[1743772946879,0.15233334,1784.6,1784.5,8.30346]
[1743772947282,1.12061,1785.1,1784.6,1.1209]
[1743772947478,1.12074,1784.9,1784.5,4.6825]
[1743772947678,1.3967,1785.1,1784.7,3.2078]
[1743772947876,2.17078,1785.3,1785.1,1.12058]
[1743772948072,0.7856,1785.6,1785.5,1.12033]
[1743772948273,1.90589,1785.6,1785.4,3.2078]
[1743772948480,1.12027,1785.6,1785.5,1.5269]
[1743772948680,1.12027,1785.6,1785.5,2.64723]
[1743772948880,1.12862434,1785.7,1785.6,1.12027]
[1743772949181,1.12862434,1785.7,1785.5,43.4472]
[1743772949182,1.12027,1785.6,1785.5,43.4472]
[1743772949386,0.00838434,1785.7,1785.6,1.12027]
[1743772949681,0.00838434,1785.7,1785.6,8.91707]
[1743772949877,0.00838434,1785.7,1785.6,11.41707]
[1743772950386,0.08455101,1785.7,1785.6,11.41707]
[1743772950887,6.0466,1786.3,1786.2,1.11989]
[1743772951086,2.57748,1786.3,1786.1,4.32771]
[1743772951284,0.7549,1786.5,1786.2,2.57794]
[1743772951482,1.11981,1786.4,1786.3,1.11983]
[1743772951678,2.7725,1786.5,1786.3,1.11983]
[1743772951981,2.2125,1786.5,1786.3,1.11978]
[1743772952190,2.2125,1786.5,1786.1,3.2078]
[1743772952389,1.11977,1786.4,1786.3,1.11981]
[1743772952890,3.33224,1786.5,1786.3,3.2078]
[1743772953087,0.00838434,1786.6,1786.5,1.1197]
[1743772953288,0.00838434,1786.6,1786.4,1.11972]
[1743772953585,0.00838434,1786.6,1786.5,4.3275]
[1743772953792,1.5072,1787.2,1787.1,1.11933]
[1743772954083,1.11939,1787.0,1786.8,1.11948]
[1743772954284,1.11939,1787.0,1786.9,40.8]
[1743772954885,0.00838434,1787.1,1786.9,40.8]
[1743772955081,1.11939,1787.0,1786.9,40.8]
[1743772955290,1.5072,1787.0,1786.5,1.1197]
[1743772955484,1.11961,1786.7,1786.5,1.1197]
[1743772955683,7.51352,1787.0,1786.5,4.32748]
[1743772955684,12.09952,1787.0,1786.5,4.32748]
[1743772955884,2.79864,1786.9,1786.4,0.00838434]
[1743772956085,1.1197,1786.5,1786.4,0.00838434]
[1743772956486,1.11967,1786.6,1786.4,1.12812434]
[1743772956691,2.5991,1786.5,1786.4,0.00838434]
[1743772957190,1.3583,1786.8,1786.4,1.12815434]
[1743772957393,1.11969,1786.6,1786.4,0.00838434]
[1743772957689,1.1197,1786.5,1786.4,1.12814434]
[1743772957887,1.1197,1786.5,1786.4,0.00838434]
[1743772958685,0.07616667,1786.5,1786.4,1.12813434]
[1743772959687,0.07616667,1786.5,1786.4,0.00838434]
[1743772959994,1.19586667,1786.5,1786.4,0.00838434]
[1743772961186,3.69586667,1786.5,1786.4,0.00838434]
[1743772961391,5.89906667,1786.5,1786.4,0.00838434]
[1743772961893,3.39906667,1786.5,1786.4,0.00838434]
[1743772962294,2.27936667,1786.5,1786.4,0.00838434]
[1743772962498,2.65246667,1786.5,1786.4,0.00838434]
[1743772962798,1.19586667,1786.5,1786.4,0.00838434]
[1743772963194,0.07616667,1786.5,1786.4,1.12815434]
[1743772963388,0.07616667,1786.5,1786.4,6.83595434]
[1743772963585,0.00838434,1787.1,1787.0,1.11939]
[1743772963791,0.00838434,1787.1,1787.0,4.32719]
[1743772964694,1.12771434,1787.1,1787.0,3.2078]
[1743772965091,0.00838434,1787.1,1787.0,4.32719]
[1743772965792,1.11956,1786.8,1786.6,3.2078]
[1743772966001,1.11952,1786.8,1786.7,45.382]
[1743772966490,1.11943,1787.0,1786.7,10.2898]
[1743772966701,1.12775434,1787.1,1787.0,1.11939]
[1743772966994,1.12775434,1787.1,1787.0,40.8]
[1743772967595,1.11939,1787.0,1786.9,3.2078]
[1743772967787,2.52919,1787.0,1786.9,3.2078]
[1743772968299,1.4098,1787.0,1786.9,4.32725]
[1743772968496,1.19555667,1787.0,1786.9,4.32725]
[1743772969093,0.07616667,1787.0,1786.9,4.32725]
[1743772970204,1.19555667,1787.0,1786.9,3.2078]
[1743772970502,1.19555667,1787.0,1786.9,4.7465]
[1743772970911,1.19555667,1787.0,1786.9,3.2078]
[1743772971705,2.71585667,1787.0,1786.9,5.77895]
[1743772972108,2.71585667,1787.0,1786.9,4.6595]
[1743772973008,0.07616667,1787.0,1786.9,5.77895]
[1743772973306,1.19555667,1787.0,1786.9,3.2078]
[1743772973503,2.71585667,1787.0,1786.9,4.32725]
[1743772973903,2.71585667,1787.0,1786.9,4.7095]
[1743772974100,2.71585667,1787.0,1786.9,5.82895]
[1743772974508,0.07616667,1787.0,1786.9,5.82895]
[1743772975009,0.07616667,1787.0,1786.9,8.32895]
[1743772976211,0.07616667,1787.0,1786.9,5.82895]
[1743772976509,2.79866,1786.9,1786.5,4.32744]
[1743772976698,1.11964,1786.6,1786.5,5.78764]
[1743772976898,1.11964,1786.6,1786.5,46.58764]
[1743772977103,1.11964,1786.6,1786.5,45.468]
[1743772977503,1.19580667,1786.6,1786.5,46.5877]
[1743772978012,1.19580667,1786.6,1786.5,42.2602]
[1743772978311,1.19580667,1786.6,1786.5,40.8]
[1743772978805,0.07616667,1786.6,1786.5,43.3799]
[1743772979006,0.07616667,1786.6,1786.5,46.5877]
[1743772979906,0.07616667,1786.6,1786.5,43.3799]
[1743772980305,0.07616667,1786.6,1786.5,46.5877]
[1743772981106,1.19580667,1786.6,1786.5,46.5877]
[1743772981304,1.19580667,1786.6,1786.5,42.2602]
[1743772981599,1.1197,1786.5,1786.4,0.00838434]
[1743772981807,1.1197,1786.5,1786.4,1.41228434]
[1743772982008,1.19582667,1786.6,1786.4,42.21228434]
[1743772982311,0.07616667,1786.6,1786.5,4.3275]
[1743772982611,0.07616667,1786.6,1786.5,5.7314]
[1743772983417,1.12771434,1787.1,1787.0,1.11939]
[1743772984003,1.12771434,1787.1,1787.0,2.65529]
[1743772984202,1.12771434,1787.1,1787.0,43.45529]
[1743772984412,1.12771434,1787.1,1787.0,42.3359]
[1743772985415,0.00838434,1787.1,1787.0,43.45529]
[1743772985616,1.12771434,1787.1,1787.0,42.3359]
[1743772986215,1.12771434,1787.1,1787.0,43.45529]
[1743772986923,1.67899,1787.7,1787.4,2.79786]
[1743772987110,2.8446,1787.8,1787.5,7.52905]
[1743772987312,2.8446,1787.8,1787.7,4.32675]
[1743772987514,1.4361,1787.8,1787.7,4.32675]
[1743772987809,1.11884,1787.9,1787.8,1.11884]
[1743772988010,4.23291,1788.1,1787.8,1.5236]
[1743772988213,1.11883,1787.9,1787.8,1.5236]
[1743772988416,1.11889,1787.8,1787.7,0.00838434]
[1743772988613,1.11914,1787.4,1787.3,0.4538233]
[1743772989410,1.1192,1787.3,1787.2,1.11922]
[1743772989615,1.4927,1787.4,1787.3,1.1192]
[1743772989817,0.00838434,1787.4,1787.3,1.1192]
[1743772990220,0.00838434,1787.4,1787.3,41.9192]
[1743772990921,6.00471,1788.1,1787.8,1.11888]
[1743772991118,1.4927,1788.0,1787.8,1.11884]
[1743772991316,1.11884,1787.9,1787.8,1.11884]
[1743772991825,3.3563,1788.4,1787.7,6.00519]
[1743772992018,1.1186,1788.3,1788.2,4.32644]
[1743772992219,1.11856,1788.4,1788.3,1.11856]
[1743772992424,1.11858,1788.3,1788.2,4.32639]
[1743772992624,1.11858,1788.3,1788.2,3.2078]
[1743772992832,1.11864,1788.2,1788.1,0.00838434]
[1743772993237,1.11861,1788.3,1788.2,1.11861]
[1743772993434,5.69729,1788.5,1788.1,0.00838434]
[1743772993435,1.11864,1788.2,1788.1,1.12704434]
[1743772993637,1.11862,1788.3,1788.2,1.11862]
[1743772993828,2.9011,1788.5,1788.2,3.2078]
[1743772994133,1.11856,1788.4,1788.3,1.11856]
[1743772994333,2.9011,1788.5,1788.2,4.32638]
[1743772994334,1.11858,1788.3,1788.2,4.32638]
[1743772994634,1.11858,1788.3,1788.2,4.32644]
[1743772995032,2.9011,1788.5,1788.2,4.32644]
[1743772995229,2.79598,1788.6,1788.2,3.2078]
[1743772995537,1.11864,1788.2,1788.1,0.00838434]
[1743772995730,1.11864,1788.2,1788.1,40.80838434]
[1743772996537,1.11864,1788.2,1788.1,0.00838434]
[1743772996934,5.08834,1788.2,1788.1,0.00838434]
[1743772997137,2.58834,1788.2,1788.1,0.00838434]
[1743772997640,1.11883,1787.9,1787.8,3.2078]
[1743772999136,1.4139,1788.1,1787.8,6.00496]
[1743772999339,1.11871,1788.1,1788.0,3.2078]
[1743772999542,2.58839,1788.2,1788.1,1.1187]
[1743772999736,1.11862,1788.3,1788.2,1.11861]
[1743772999940,1.4565,1788.4,1788.0,3.2078]
[1743773000135,1.11876,1788.0,1787.9,1.82826]
[1743773000445,1.11876,1788.1,1788.0,0.00838434]
[1743773000645,1.11876,1788.1,1788.0,1.42508434]
[1743773001143,1.11876,1788.1,1788.0,5.75164434]
[1743773001436,1.11876,1788.1,1788.0,1.42508434]
[1743773001642,1.11876,1788.1,1788.0,0.00838434]
[1743773002943,2.65956,1788.1,1788.0,0.00838434]
[1743773003342,1.11901,1787.6,1787.5,40.8]
[1743773003946,2.5,1787.6,1787.1,5.6853]
[1743773004143,1.11945,1786.9,1786.8,4.32728]
[1743773004449,1.11945,1786.9,1786.8,45.12729]
[1743773005143,1.11945,1786.9,1786.8,44.0078]
[1743773005345,1.11945,1786.9,1786.8,40.8]
[1743773005538,2.59285,1786.9,1786.8,40.8]
[1743773006446,1.11952,1786.8,1786.7,0.00838434]
[1743773006747,2.59292,1786.8,1786.7,0.00838434]
[1743773007249,9.65792,1786.8,1786.7,0.00838434]
[1743773007642,2.59292,1786.8,1786.7,0.00838434]
[1743773008137,1.81661,1786.9,1786.7,0.00838434]
[1743773008341,1.11947,1786.9,1786.8,1.11949]
[1743773008549,1.11952,1786.8,1786.7,4.63408434]
[1743773008750,1.11952,1786.8,1786.7,1.42628434]
[1743773008941,1.11951,1786.9,1786.8,1.11952]
[1743773009246,1.11952,1786.8,1786.7,1.42628434]
[1743773009846,1.11952,1786.8,1786.7,2.54586434]
[1743773010347,1.11949,1786.9,1786.7,2.54586434]
[1743773010648,1.11949,1786.9,1786.7,2.54581434]
[1743773010942,0.00838434,1787.0,1786.8,3.2078]
[1743773011140,1.12777434,1787.0,1786.9,2.56355]
[1743773011342,1.12777434,1787.0,1786.9,1.4441]
[1743773011541,0.00838434,1787.0,1786.7,0.00838434]
[1743773011846,1.11949,1786.9,1786.8,1.11951]
[1743773012046,0.00838434,1787.0,1786.7,0.00838434]
[1743773012247,1.11952,1786.8,1786.7,0.00838434]
[1743773012448,1.11952,1786.8,1786.7,1.12796434]
[1743773012650,1.11952,1786.8,1786.7,0.00838434]
[1743773012855,1.11952,1786.8,1786.7,1.45248434]
[1743773013044,1.11952,1786.8,1786.7,2.57206434]
[1743773013244,4.21908434,1787.0,1786.8,1.11949]
[1743773013245,1.11949,1786.9,1786.8,1.11949]
[1743773013445,1.11952,1786.8,1786.7,2.57202434]
[1743773013755,1.11952,1786.8,1786.7,1.45248434]
[1743773014250,1.11952,1786.8,1786.7,0.00838434]
[1743773014657,1.11952,1786.8,1786.7,1.53428434]
[1743773014852,2.61902,1786.8,1786.7,1.53428434]
[1743773015441,2.6015,1786.9,1786.7,1.53428434]
[1743773015649,1.11949,1786.9,1786.8,1.11949]
[1743773015854,1.1195,1786.9,1786.8,1.1195]
[1743773016057,1.11952,1786.8,1786.7,2.65382434]
[1743773016252,1.11952,1786.8,1786.7,1.53428434]
[1743773016756,1.11952,1786.8,1786.7,2.65386434]
[1743773016946,1.11952,1786.8,1786.7,1.53428434]
[1743773017545,1.11949,1786.9,1786.7,2.65386434]
[1743773017743,1.12779434,1787.0,1786.7,1.53428434]
[1743773017948,1.12779434,1787.0,1786.9,1.11945]
[1743773018258,0.00838434,1787.0,1786.9,1.11945]
[1743773018447,0.00838434,1787.0,1786.9,7.16365]
[1743773018651,0.6986,1787.4,1787.3,1.1192]
[1743773018851,1.11914,1787.5,1787.4,1.11914]
[1743773019050,4.92953,1787.7,1787.2,12.05017]
[1743773019248,1.11906,1787.6,1787.5,1.11904]
[1743773019549,1.11898,1787.7,1787.6,1.11899]
[1743773019748,1.12736434,1787.7,1787.6,1.11899]
[1743773019942,1.11901,1787.6,1787.5,6.0155]
[1743773020146,1.11901,1787.6,1787.5,46.8155]
[1743773020452,1.12736434,1787.7,1787.6,1.11901]
[1743773020659,0.00838434,1787.7,1787.6,4.32681]
[1743773022055,0.00838434,1787.7,1787.6,45.12681]
[1743773022444,1.544,1788.2,1787.6,47.62681]
[1743773022648,1.544,1788.2,1787.7,1.5147]
[1743773022850,4.34066,1788.2,1787.9,1.11881]
[1743773023058,1.1187,1788.1,1788.0,1.5147]
[1743773023946,1.11876,1788.0,1787.9,0.00838434]
[1743773024258,2.65966,1788.0,1787.9,0.00838434]
[1743773024449,1.11895,1787.7,1787.6,7.7698]
[1743773024653,10.0457,1788.0,1787.3,3.2078]
[1743773024654,4.7487,1788.0,1787.3,3.2078]
[1743773024854,1.11914,1787.4,1787.3,4.7225]
[1743773025155,3.9728,1787.8,1787.7,1.11895]
[1743773025350,1.11898,1787.7,1787.6,1.11898]
[1743773025549,1.11898,1787.7,1787.6,1.12736434]
[1743773025752,4.32675,1787.8,1787.7,1.11895]
[1743773026056,1.11895,1787.7,1787.6,0.00838434]
[1743773026759,1.11895,1787.7,1787.6,1.12739434]
[1743773026962,4.32672,1787.8,1787.7,1.11895]
[1743773027152,1.12721434,1787.9,1787.8,1.11889]
[1743773027552,0.00838434,1787.9,1787.8,1.11889]
[1743773027848,0.05283885,1787.9,1787.8,1.11889]
[1743773028760,1.20631145,1787.9,1787.8,1.11889]
[1743773028955,0.08748145,1787.9,1787.8,1.11889]
[1743773029162,0.08748145,1787.9,1787.8,3.61889]
[1743773030660,0.08748145,1787.9,1787.8,44.41889]
[1743773030961,0.08748145,1787.9,1787.8,46.47789]
[1743773032164,1.20631145,1787.9,1787.8,46.47789]
[1743773032351,0.08748145,1787.9,1787.8,46.47789]
[1743773033763,0.08748145,1787.9,1787.8,41.91889]
[1743773033964,0.08748145,1787.9,1787.8,46.47689]
[1743773034458,1.20631145,1787.9,1787.8,45.358]
[1743773034659,1.11895,1787.7,1787.6,0.00838434]
[1743773035166,1.11895,1787.7,1787.6,40.80838434]
[1743773035358,3.26715,1787.7,1787.6,40.80838434]
[1743773035765,3.34624711,1787.7,1787.6,40.80838434]
[1743773035965,0.07909711,1787.7,1787.6,41.92739434]
[1743773036160,0.07909711,1787.7,1787.6,46.48439434]
[1743773037064,1.19804711,1787.7,1787.6,46.48439434]
[1743773037569,1.26983398,1787.7,1787.6,46.48439434]
[1743773037966,1.26983398,1787.7,1787.6,40.80838434]
[1743773038165,1.26983398,1787.7,1787.6,41.92739434]
[1743773038359,1.26983398,1787.7,1787.6,40.80838434]
[1743773038562,1.27421378,1787.7,1787.6,40.80838434]
[1743773039761,0.15526378,1787.7,1787.6,41.92739434]
[1743773039957,0.15526378,1787.7,1787.6,46.48339434]
[1743773040556,0.15526378,1787.7,1787.6,50.43279434]
[1743773040761,0.15526378,1787.7,1787.6,51.16109434]
[1743773042057,0.00838434,1787.9,1787.8,1.11889]
[1743773042257,0.00838434,1787.9,1787.8,4.32669]
[1743773042471,1.5211,1788.2,1788.1,1.1187]
[1743773042659,2.63974,1788.2,1788.1,1.1187]
[1743773043269,2.63974,1788.2,1788.1,1.4868]
[1743773043469,1.1187,1788.1,1788.0,1.11875]
[1743773043664,1.1187,1788.1,1788.0,2.60555]
[1743773044168,2.61008,1788.2,1788.1,1.1187]
[1743773044565,3.2078,1788.5,1788.0,4.28368]
[1743773044763,1.11867,1788.2,1788.1,1.11864]
[1743773045266,1.1187,1788.1,1788.0,2.60553]
[1743773045467,2.6101,1788.1,1788.0,2.60553]
[1743773045765,2.61015,1788.1,1788.0,1.11876]
[1743773046166,1.11867,1788.2,1788.1,1.1187]
[1743773046366,1.11867,1788.2,1788.0,1.5438]
[1743773046367,1.1187,1788.1,1788.0,1.5438]
[1743773046568,1.4914,1788.2,1787.9,6.00486]
[1743773046768,3.2078,1788.5,1788.1,1.1187]
[1743773046966,1.11861,1788.3,1788.2,1.11858]
[1743773047268,2.61216,1788.4,1788.3,1.11858]
[1743773047467,1.11858,1788.3,1788.2,2.65009]
[1743773047664,2.61216,1788.4,1788.3,1.11858]
[1743773047873,1.11858,1788.3,1788.2,2.65009]
[1743773048075,1.11858,1788.3,1788.2,1.5315]
[1743773048377,1.4936,1788.4,1788.0,1.11872]
[1743773048667,1.4936,1788.4,1787.7,7.7608]
[1743773048668,2.79676,1788.1,1787.7,7.7608]
[1743773048871,1.5213,1788.0,1787.7,12.08957]
[1743773049076,1.5213,1788.0,1787.9,1.11883]
[1743773049271,1.4936,1788.2,1787.9,7.12357]
[1743773049472,1.4936,1788.2,1788.1,1.1187]
[1743773049674,2.61224,1788.2,1788.1,1.1187]
[1743773049875,1.4936,1788.2,1788.1,1.1187]
[1743773050375,2.61224,1788.2,1788.1,1.1187]
[1743773050776,2.59963,1788.3,1788.2,1.11864]
[1743773051067,1.481,1788.3,1788.2,2.59594]
[1743773051374,2.59958,1788.3,1788.2,2.59594]
[1743773051773,1.481,1788.3,1788.2,2.59594]
[1743773051972,2.59958,1788.3,1788.2,2.59594]
[1743773052677,1.11876,1788.1,1788.0,1.11872]
[1743773052878,2.5192,1788.2,1788.1,1.1187]
[1743773053373,1.481,1788.3,1788.2,1.11864]
[1743773053374,2.59962,1788.3,1788.2,1.11864]
[1743773053571,2.8815,1788.3,1788.0,1.4771]
[1743773053776,5.67809,1788.3,1787.9,3.2078]
[1743773053977,1.1187,1788.2,1788.1,1.11864]
[1743773054177,4.00013,1788.3,1788.2,1.11864]
[1743773054377,2.8815,1788.3,1788.2,1.11864]
[1743773054577,1.481,1788.3,1788.2,1.11864]
[1743773054879,0.7106,1788.3,1788.2,2.59574]
[1743773055077,1.82225,1788.6,1788.5,1.11845]
[1743773056585,1.4005,1788.7,1788.6,1.11839]
[1743773056876,1.4825,1788.8,1788.7,1.11833]
[1743773057081,0.5592,1789.1,1788.7,1.11833]
[1743773057082,1.11813,1789.1,1789.0,1.11811]
[1743773057270,1.11818,1789.0,1788.9,1.11815]
[1743773057473,2.58758,1789.0,1788.9,43.40765]
[1743773057677,1.4825,1789.2,1789.0,1.11809]
[1743773057882,1.11811,1789.1,1789.0,1.4895]
[1743773058179,1.11814,1789.0,1788.9,40.8]
[1743773058377,2.58754,1789.0,1788.9,40.8]
[1743773058577,2.58754,1789.0,1788.9,41.9182]
[1743773058981,2.58754,1789.0,1788.9,40.8]
[1743773059779,1.11833,1788.7,1788.6,1.47978434]
[1743773059983,1.11833,1788.7,1788.6,2.59816434]
[1743773060479,1.11833,1788.7,1788.6,0.00838434]
[1743773060676,3.25673,1788.7,1788.6,0.00838434]
[1743773061278,3.25673,1788.7,1788.6,1.12677434]
[1743773061489,1.11833,1788.7,1788.6,0.00838434]
[1743773061670,1.11833,1788.7,1788.6,1.47978434]
[1743773061875,1.11833,1788.7,1788.6,0.00838434]
[1743773062385,2.56693,1788.7,1788.6,0.00838434]
[1743773063079,5.06693,1788.7,1788.6,0.00838434]
[1743773063481,8.27473,1788.7,1788.6,0.00838434]
[1743773064171,7.1564,1788.7,1787.9,1.11881]
[1743773064378,1.11883,1787.9,1787.8,2.65326]
[1743773064579,2.79678,1788.1,1787.7,1.1189]
[1743773064580,1.11889,1787.8,1787.7,1.1189]
[1743773064886,2.8823,1788.0,1787.9,1.11883]
[1743773065076,4.00106,1788.0,1787.9,1.11883]
[1743773065387,2.8823,1788.0,1787.9,1.11883]
[1743773065686,1.11883,1787.9,1787.8,0.00838434]
[1743773065888,2.53523,1787.9,1787.8,0.00838434]
[1743773068982,9.58223,1787.9,1787.8,0.00838434]
[1743773069177,2.79741,1787.7,1787.3,2.55006]
[1743773069478,1.11913,1787.5,1787.4,41.91914]
[1743773069682,1.11913,1787.5,1787.4,43.35004]
[1743773070182,1.11913,1787.5,1787.4,40.8]
[1743773070383,1.4178,1787.6,1787.5,1.11908]
[1743773070584,4.6415,1788.0,1787.5,1.4309]
[1743773070780,1.11889,1787.8,1787.7,1.11892]
[1743773071276,1.11895,1787.7,1787.6,1.11897]
[1743773071475,2.53667,1787.9,1787.8,1.11889]
[1743773072180,1.11887,1787.9,1787.8,1.11889]
[1743773072378,1.4337,1788.0,1787.6,3.2078]
[1743773072685,1.11889,1787.8,1787.7,1.1189]
[1743773072982,4.23067,1788.0,1787.7,1.11895]
[1743773073181,1.11893,1787.8,1787.7,1.11895]
[1743773073384,1.11894,1787.8,1787.6,3.2078]
[1743773073586,1.11895,1787.7,1787.6,4.32677]
[1743773073783,1.11895,1787.8,1787.7,1.11894]
[1743773073983,4.0023,1788.0,1787.9,1.11883]
[1743773074286,1.11884,1787.9,1787.8,1.11885]
[1743773074787,1.11879,1788.0,1787.9,1.11883]
[1743773075289,1.11885,1787.9,1787.8,1.11884]
[1743773075592,1.11882,1788.0,1787.9,1.1188]
[1743773075789,4.33838434,1788.1,1787.7,7.7538]
[1743773076088,1.11889,1787.8,1787.7,8.87272]
[1743773076290,1.11889,1787.8,1787.7,8.87275]
[1743773076487,1.11889,1787.8,1787.7,5.66495]
[1743773076786,1.11895,1787.7,1787.6,1.82417]
[1743773076989,1.11901,1787.6,1787.4,40.8]
[1743773077287,1.11899,1787.7,1787.6,1.11897]
[1743773078091,1.11906,1787.6,1787.5,1.11901]
[1743773078990,1.11908,1787.5,1787.4,46.46409]
[1743773079490,2.79742,1787.7,1787.4,46.46409]
[1743773079491,1.11888,1787.9,1787.5,2.79766]
[1743773079681,1.11879,1788.0,1787.9,1.11876]
[1743773079880,1.12710434,1788.1,1787.8,2.79723]
[1743773080086,0.00838434,1788.1,1788.0,1.11876]
[1743773081791,1.12708434,1788.1,1788.0,1.11876]
[1743773082183,0.00838434,1788.1,1788.0,1.11876]
[1743773082690,1.12708434,1788.1,1788.0,1.11876]
[1743773082889,1.11882,1788.0,1787.9,1.11878]
[1743773084992,1.11876,1788.0,1787.9,1.11878]
[1743773085184,2.61173434,1788.1,1788.0,1.11876]
[1743773085385,1.12713434,1788.1,1788.0,1.11876]
[1743773085689,1.12708434,1788.1,1788.0,1.11876]
[1743773086597,0.00838434,1788.1,1788.0,1.11876]
[1743773086894,1.12708434,1788.1,1788.0,1.11876]
[1743773087886,0.00838434,1788.1,1788.0,1.11876]
[1743773088092,1.12708434,1788.1,1788.0,1.11876]
[1743773088595,1.11889,1787.8,1787.7,5.66188]
[1743773088891,1.11888,1787.9,1787.8,1.11883]
[1743773089095,1.11889,1787.8,1787.7,1.1189]
[1743773089799,1.11889,1787.8,1787.7,1.11895]
[1743773089987,1.11895,1787.7,1787.6,4.32673]
[1743773090182,1.11895,1787.7,1787.5,7.33867]
[1743773090183,2.79723,1787.8,1787.4,40.8]
[1743773090488,1.11908,1787.5,1787.4,40.8]